[Event "Late-Titled-Tuesday-Blitz-September-05-2023"]
[Site "Chess.com"]
[Date "2023.09.05"]
[Round "4"]
[White "Smiechu"]
[Black "Andrei_Skvortsov"]
[Result "0-1"]
[WhiteElo "2419"]
[BlackElo "2633"]
[TimeControl "180+1"]
[EndTime "14:38:39 PDT"]
[Termination "Andrei_Skvortsov won on time"]

1. e4 {[%clk 0:03:00.9]} 1... c5 {[%clk 0:02:59.8]} 2. Nf3 {[%clk 0:03:00.9]}
2... d6 {[%clk 0:03:00.3]} 3. d4 {[%clk 0:03:01.5]} 3... Nf6 {[%clk 0:03:00.8]}
4. Nc3 {[%clk 0:03:00.5]} 4... cxd4 {[%clk 0:03:01.4]} 5. Nxd4 {[%clk
0:03:00.6]} 5... g6 {[%clk 0:03:02.1]} 6. Be3 {[%clk 0:02:59.6]} 6... Bg7 {[%clk
0:03:02.5]} 7. f3 {[%clk 0:02:59.4]} 7... O-O {[%clk 0:03:02.9]} 8. Qd2 {[%clk
0:02:58.5]} 8... d5 {[%clk 0:03:03.3]} 9. exd5 {[%clk 0:02:57]} 9... Nxd5 {[%clk
0:03:02.8]} 10. Nxd5 {[%clk 0:02:50.5]} 10... Qxd5 {[%clk 0:03:03.7]} 11. c4
{[%clk 0:02:25]} 11... Qd7 {[%clk 0:03:01.2]} 12. Be2 {[%clk 0:02:17.9]} 12...
Nc6 {[%clk 0:03:01.2]} 13. Nxc6 {[%clk 0:02:15.9]} 13... Qxc6 {[%clk 0:03:02.1]}
14. O-O {[%clk 0:02:14.7]} 14... Be6 {[%clk 0:03:02.6]} 15. Rac1 {[%clk
0:02:12.8]} 15... a5 {[%clk 0:03:01.8]} 16. Bh6 {[%clk 0:01:59.8]} 16... Bxh6
{[%clk 0:03:01.7]} 17. Qxh6 {[%clk 0:01:59.6]} 17... Qb6+ {[%clk 0:03:02.3]} 18.
Kh1 {[%clk 0:01:57.2]} 18... Qxb2 {[%clk 0:03:02.8]} 19. Bd3 {[%clk 0:01:50.9]}
19... Qxa2 {[%clk 0:03:00.9]} 20. f4 {[%clk 0:01:49.2]} 20... Qb3 {[%clk
0:02:54.6]} 21. Bc2 {[%clk 0:01:29.9]} 21... Qb2 {[%clk 0:02:51.5]} 22. f5
{[%clk 0:01:28.6]} 22... gxf5 {[%clk 0:02:43.9]} 23. Bxf5 {[%clk 0:01:24.6]}
23... Qg7 {[%clk 0:02:43.6]} 24. Qh4 {[%clk 0:01:16.3]} 24... Bxf5 {[%clk
0:02:41.8]} 25. Rxf5 {[%clk 0:01:15.4]} 25... f6 {[%clk 0:02:42.2]} 26. Rf4
{[%clk 0:01:10.2]} 26... Kh8 {[%clk 0:02:36.2]} 27. Rg4 {[%clk 0:01:07.3]} 27...
Qf7 {[%clk 0:02:36]} 28. Re1 {[%clk 0:00:59.1]} 28... a4 {[%clk 0:02:33.3]} 29.
c5 {[%clk 0:00:55]} 29... a3 {[%clk 0:02:32.1]} 30. Ra4 {[%clk 0:00:55]} 30...
e5 {[%clk 0:02:32.5]} 31. Qb4 {[%clk 0:00:50.9]} 31... a2 {[%clk 0:02:32.4]} 32.
Ra1 {[%clk 0:00:48.9]} 32... Rxa4 {[%clk 0:02:30.7]} 33. Qxa4 {[%clk 0:00:48.8]}
33... Rd8 {[%clk 0:02:31.2]} 34. h3 {[%clk 0:00:45.3]} 34... Rd2 {[%clk
0:02:25.3]} 35. Qe4 {[%clk 0:00:15.4]} 35... Rd4 {[%clk 0:02:13.4]} 36. Qe2
{[%clk 0:00:13.5]} 36... Ra4 {[%clk 0:02:06.9]} 37. Qc2 {[%clk 0:00:13.7]} 37...
Ra6 {[%clk 0:02:06.2]} 38. Qd2 {[%clk 0:00:12.9]} 38... Kg7 {[%clk 0:02:05.7]}
39. Qc2 {[%clk 0:00:12.7]} 39... Qd5 {[%clk 0:02:05]} 40. Qe2 {[%clk 0:00:11.2]}
40... Ra3 {[%clk 0:02:00.2]} 41. Qg4+ {[%clk 0:00:11]} 41... Kf8 {[%clk
0:01:56]} 42. Qc8+ {[%clk 0:00:10.7]} 42... Kf7 {[%clk 0:01:55.7]} 43. Qg4
{[%clk 0:00:10.6]} 43... Qd4 {[%clk 0:01:47.9]} 44. Qh5+ {[%clk 0:00:09.5]}
44... Kg7 {[%clk 0:01:47.7]} 0-1

[Event "Late-Titled-Tuesday-Blitz-September-05-2023"]
[Site "Chess.com"]
[Date "2023.09.05"]
[Round "4"]
[White "Schwindle"]
[Black "MKlose11"]
[Result "0-1"]
[WhiteElo "2421"]
[BlackElo "2636"]
[TimeControl "180+1"]
[EndTime "14:38:44 PDT"]
[Termination "MKlose11 won by resignation"]

1. e4 {[%clk 0:03:00.9]} 1... e6 {[%clk 0:02:59.6]} 2. d4 {[%clk 0:03:00.7]}
2... d5 {[%clk 0:03:00]} 3. Nc3 {[%clk 0:02:59.3]} 3... Bb4 {[%clk 0:02:58.1]}
4. e5 {[%clk 0:02:59.4]} 4... Ne7 {[%clk 0:02:55.2]} 5. Nf3 {[%clk 0:02:54.6]}
5... b6 {[%clk 0:02:54.2]} 6. Bb5+ {[%clk 0:02:52.4]} 6... c6 {[%clk 0:02:52.4]}
7. Bd3 {[%clk 0:02:48.5]} 7... Ba6 {[%clk 0:02:52.5]} 8. O-O {[%clk 0:02:47.4]}
8... Bxd3 {[%clk 0:02:51.5]} 9. Qxd3 {[%clk 0:02:47.3]} 9... Bxc3 {[%clk
0:02:49.4]} 10. Qxc3 {[%clk 0:02:47.1]} 10... O-O {[%clk 0:02:45.8]} 11. Bg5
{[%clk 0:02:41.8]} 11... h6 {[%clk 0:02:44.7]} 12. Bh4 {[%clk 0:02:38.3]} 12...
Qc7 {[%clk 0:02:43]} 13. Bxe7 {[%clk 0:02:26.7]} 13... Qxe7 {[%clk 0:02:42]} 14.
Qd3 {[%clk 0:02:22.8]} 14... c5 {[%clk 0:02:41.9]} 15. c4 {[%clk 0:02:21.3]}
15... dxc4 {[%clk 0:02:38.3]} 16. Qxc4 {[%clk 0:02:20.9]} 16... cxd4 {[%clk
0:02:36.5]} 17. Nxd4 {[%clk 0:02:08.7]} 17... Nd7 {[%clk 0:02:36.2]} 18. Qe2
{[%clk 0:01:56.5]} 18... Qc5 {[%clk 0:02:29.5]} 19. Nf3 {[%clk 0:01:54.3]} 19...
Rfd8 {[%clk 0:02:29.6]} 20. Rac1 {[%clk 0:01:47.3]} 20... Qa5 {[%clk 0:02:28.8]}
21. Rfd1 {[%clk 0:01:39.4]} 21... Nf8 {[%clk 0:02:26.7]} 22. a3 {[%clk
0:01:37.1]} 22... Ng6 {[%clk 0:02:24.5]} 23. g3 {[%clk 0:01:32.8]} 23... Ne7
{[%clk 0:02:20.4]} 24. Rc7 {[%clk 0:01:21.9]} 24... Rxd1+ {[%clk 0:02:12.4]} 25.
Qxd1 {[%clk 0:01:21.2]} 25... Nd5 {[%clk 0:02:13.3]} 26. Rc4 {[%clk 0:01:12.3]}
26... Qb5 {[%clk 0:02:04.9]} 27. Qe2 {[%clk 0:01:05.9]} 27... Rd8 {[%clk
0:02:00.5]} 28. Nd4 {[%clk 0:00:58.8]} 28... Qd7 {[%clk 0:02:00.3]} 29. a4
{[%clk 0:00:52.4]} 29... Ne7 {[%clk 0:01:51]} 30. Nb5 {[%clk 0:00:46.3]} 30...
Ng6 {[%clk 0:01:45]} 31. Rd4 {[%clk 0:00:34]} 31... Qe7 {[%clk 0:01:38.3]} 32.
Rxd8+ {[%clk 0:00:33.1]} 32... Qxd8 {[%clk 0:01:39.2]} 33. Nxa7 {[%clk
0:00:33.8]} 33... Qa8 {[%clk 0:01:39.2]} 34. Qa6 {[%clk 0:00:30.6]} 34... Nxe5
{[%clk 0:01:39.1]} 35. Qc8+ {[%clk 0:00:31]} 35... Qxc8 {[%clk 0:01:37.3]} 36.
Nxc8 {[%clk 0:00:31.9]} 36... Nd7 {[%clk 0:01:33.3]} 37. b4 {[%clk 0:00:27.9]}
37... Kf8 {[%clk 0:01:33.7]} 38. a5 {[%clk 0:00:26.7]} 38... bxa5 {[%clk
0:01:34.6]} 39. bxa5 {[%clk 0:00:27.5]} 39... Nc5 {[%clk 0:01:30.2]} 40. Nd6
{[%clk 0:00:23]} 40... Ke7 {[%clk 0:01:27.1]} 41. Nb7 {[%clk 0:00:23]} 41... Na6
{[%clk 0:01:22.1]} 42. Kf1 {[%clk 0:00:21]} 42... Kd7 {[%clk 0:01:22.5]} 43. Ke2
{[%clk 0:00:20.6]} 43... Kc7 {[%clk 0:01:23]} 0-1

[Event "Late-Titled-Tuesday-Blitz-September-05-2023"]
[Site "Chess.com"]
[Date "2023.09.05"]
[Round "4"]
[White "Fonsofan"]
[Black "NotFischer"]
[Result "1-0"]
[WhiteElo "2744"]
[BlackElo "2289"]
[TimeControl "180+1"]
[EndTime "14:38:45 PDT"]
[Termination "Fonsofan won on time"]

1. e4 {[%clk 0:02:54.1]} 1... d5 {[%clk 0:02:59.6]} 2. exd5 {[%clk 0:02:53]}
2... Qxd5 {[%clk 0:03:00.5]} 3. Nc3 {[%clk 0:02:53.4]} 3... Qd6 {[%clk
0:03:00.3]} 4. g3 {[%clk 0:02:54.1]} 4... Nf6 {[%clk 0:02:58.8]} 5. Bg2 {[%clk
0:02:54.5]} 5... c6 {[%clk 0:02:57.3]} 6. Nge2 {[%clk 0:02:53.7]} 6... e5 {[%clk
0:02:50.8]} 7. d3 {[%clk 0:02:54]} 7... Be7 {[%clk 0:02:41.8]} 8. Rb1 {[%clk
0:02:54]} 8... O-O {[%clk 0:02:40.8]} 9. b4 {[%clk 0:02:54.6]} 9... Qc7 {[%clk
0:02:36.4]} 10. O-O {[%clk 0:02:53.2]} 10... Nbd7 {[%clk 0:02:32.3]} 11. h3
{[%clk 0:02:51.9]} 11... Re8 {[%clk 0:02:31.3]} 12. g4 {[%clk 0:02:52.1]} 12...
Nf8 {[%clk 0:02:24.7]} 13. f4 {[%clk 0:02:51]} 13... exf4 {[%clk 0:02:22.5]} 14.
Nxf4 {[%clk 0:02:48.7]} 14... a5 {[%clk 0:02:17]} 15. b5 {[%clk 0:02:45.9]}
15... Bc5+ {[%clk 0:02:09.2]} 16. Kh1 {[%clk 0:02:44.7]} 16... Ng6 {[%clk
0:02:00.9]} 17. Nxg6 {[%clk 0:02:40.4]} 17... hxg6 {[%clk 0:02:00.4]} 18. Qf3
{[%clk 0:02:38.1]} 18... cxb5 {[%clk 0:01:43.1]} 19. Nxb5 {[%clk 0:02:33.9]}
19... Qb6 {[%clk 0:01:36]} 20. Bf4 {[%clk 0:02:33.2]} 20... Be6 {[%clk
0:00:55.3]} 21. Nc7 {[%clk 0:02:30.6]} 21... Qc6 {[%clk 0:00:28.3]} 22. Qxc6
{[%clk 0:01:58.9]} 22... bxc6 {[%clk 0:00:29.2]} 23. Bxc6 {[%clk 0:01:57.2]}
23... Rac8 {[%clk 0:00:29.3]} 24. Nxe8 {[%clk 0:01:47.5]} 24... Nxe8 {[%clk
0:00:29.6]} 25. Rb8 {[%clk 0:01:43.3]} 25... Rxb8 {[%clk 0:00:22]} 26. Bxb8
{[%clk 0:01:42.1]} 26... Nf6 {[%clk 0:00:21.9]} 27. c4 {[%clk 0:01:37.2]} 27...
g5 {[%clk 0:00:10.5]} 28. Be5 {[%clk 0:01:36.4]} 28... Nd7 {[%clk 0:00:07]} 29.
Bc3 {[%clk 0:01:31.1]} 29... Be3 {[%clk 0:00:04.9]} 30. Rb1 {[%clk 0:01:27.5]}
30... Kh7 {[%clk 0:00:02.4]} 31. Be4+ {[%clk 0:01:24.2]} 31... g6 {[%clk
0:00:02.3]} 32. Rb7 {[%clk 0:01:15.5]} 32... Nc5 {[%clk 0:00:02.4]} 33. Rb8
{[%clk 0:01:15.4]} 33... f6 {[%clk 0:00:02.3]} 34. Bxf6 {[%clk 0:01:14.5]} 34...
Bg8 {[%clk 0:00:02.4]} 35. Bd5 {[%clk 0:01:13.9]} 1-0

[Event "Late-Titled-Tuesday-Blitz-September-05-2023"]
[Site "Chess.com"]
[Date "2023.09.05"]
[Round "4"]
[White "SaqoChess_Twitch"]
[Black "Sibelephant"]
[Result "0-1"]
[WhiteElo "2734"]
[BlackElo "3119"]
[TimeControl "180+1"]
[EndTime "14:38:50 PDT"]
[Termination "Sibelephant won by resignation"]

1. d4 {[%clk 0:03:00.9]} 1... d5 {[%clk 0:02:58.2]} 2. c4 {[%clk 0:02:59.7]}
2... e6 {[%clk 0:02:58.2]} 3. Nc3 {[%clk 0:02:59.6]} 3... h6 {[%clk 0:02:58]} 4.
Nf3 {[%clk 0:02:56.5]} 4... Nf6 {[%clk 0:02:58]} 5. cxd5 {[%clk 0:02:54.5]} 5...
exd5 {[%clk 0:02:57.7]} 6. Bf4 {[%clk 0:02:54]} 6... c6 {[%clk 0:02:50.4]} 7. e3
{[%clk 0:02:53.5]} 7... Bf5 {[%clk 0:02:50]} 8. Bd3 {[%clk 0:02:52.9]} 8... Bxd3
{[%clk 0:02:49.9]} 9. Qxd3 {[%clk 0:02:53.8]} 9... Nbd7 {[%clk 0:02:46]} 10. O-O
{[%clk 0:02:53.3]} 10... Be7 {[%clk 0:02:46.2]} 11. Ne5 {[%clk 0:02:50.1]} 11...
Nb6 {[%clk 0:02:29]} 12. b3 {[%clk 0:02:44.9]} 12... O-O {[%clk 0:02:26]} 13. a4
{[%clk 0:02:44.8]} 13... a5 {[%clk 0:02:21.1]} 14. Ne2 {[%clk 0:02:44.7]} 14...
Re8 {[%clk 0:02:11.4]} 15. Ng3 {[%clk 0:02:44.3]} 15... Bf8 {[%clk 0:02:06]} 16.
Nf5 {[%clk 0:02:43.7]} 16... Nh5 {[%clk 0:01:37.8]} 17. g4 {[%clk 0:02:36.8]}
17... Nxf4 {[%clk 0:01:32.5]} 18. exf4 {[%clk 0:02:37.7]} 18... Qf6 {[%clk
0:01:19.1]} 19. Qf3 {[%clk 0:02:07.2]} 19... g6 {[%clk 0:01:16.6]} 20. Ne3
{[%clk 0:02:03.2]} 20... c5 {[%clk 0:01:06.7]} 21. dxc5 {[%clk 0:01:42.9]} 21...
Bxc5 {[%clk 0:00:57.7]} 22. g5 {[%clk 0:01:33]} 22... hxg5 {[%clk 0:00:49.2]}
23. N5g4 {[%clk 0:01:29.5]} 23... Qxf4 {[%clk 0:00:41.2]} 24. Qg2 {[%clk
0:01:29.6]} 24... d4 {[%clk 0:00:32.1]} 25. Nc4 {[%clk 0:01:29.4]} 25... Nxc4
{[%clk 0:00:31.5]} 26. bxc4 {[%clk 0:01:29.3]} 26... Kg7 {[%clk 0:00:27.4]} 27.
Rfe1 {[%clk 0:01:25.4]} 27... d3 {[%clk 0:00:26.2]} 28. Red1 {[%clk 0:01:23.2]}
28... Rad8 {[%clk 0:00:25.1]} 29. Rab1 {[%clk 0:01:22.4]} 29... d2 {[%clk
0:00:22.3]} 30. h3 {[%clk 0:01:18.4]} 30... b6 {[%clk 0:00:21.9]} 31. Qf1 {[%clk
0:01:15]} 31... f5 {[%clk 0:00:21.3]} 32. Nh2 {[%clk 0:01:14.1]} 32... Re4
{[%clk 0:00:16.7]} 33. Rb3 {[%clk 0:01:14.4]} 33... Re1 {[%clk 0:00:13.9]} 34.
Rxe1 {[%clk 0:01:14.1]} 34... Qxf2+ {[%clk 0:00:13.5]} 35. Qxf2 {[%clk 0:01:06]}
35... dxe1=Q+ {[%clk 0:00:13.3]} 0-1

[Event "Late-Titled-Tuesday-Blitz-September-05-2023"]
[Site "Chess.com"]
[Date "2023.09.05"]
[Round "4"]
[White "martinbitel"]
[Black "Jaka_Brilej"]
[Result "1/2-1/2"]
[WhiteElo "2255"]
[BlackElo "2461"]
[TimeControl "180+1"]
[EndTime "14:38:50 PDT"]
[Termination "Game drawn by repetition"]

1. d4 {[%clk 0:03:00.9]} 1... Nf6 {[%clk 0:02:57.9]} 2. c4 {[%clk 0:03:00.9]}
2... g6 {[%clk 0:02:57.4]} 3. Nf3 {[%clk 0:02:59.7]} 3... Bg7 {[%clk 0:02:57.7]}
4. g3 {[%clk 0:03:00.1]} 4... d6 {[%clk 0:02:58.3]} 5. Bg2 {[%clk 0:03:00.2]}
5... O-O {[%clk 0:02:58.5]} 6. O-O {[%clk 0:03:00.5]} 6... c5 {[%clk 0:02:58.1]}
7. e3 {[%clk 0:02:50.7]} 7... Bg4 {[%clk 0:02:51]} 8. Nc3 {[%clk 0:02:48.2]}
8... Qd7 {[%clk 0:02:43.9]} 9. b3 {[%clk 0:02:18.1]} 9... cxd4 {[%clk
0:02:39.7]} 10. exd4 {[%clk 0:02:15.9]} 10... Bh3 {[%clk 0:02:38.6]} 11. Bb2
{[%clk 0:02:13.1]} 11... Bxg2 {[%clk 0:02:38.3]} 12. Kxg2 {[%clk 0:02:13.1]}
12... Nc6 {[%clk 0:02:38]} 13. d5 {[%clk 0:01:59.6]} 13... Nb4 {[%clk
0:02:33.5]} 14. a3 {[%clk 0:01:53.9]} 14... Na6 {[%clk 0:02:28.6]} 15. Ne2
{[%clk 0:01:48.9]} 15... b5 {[%clk 0:02:06.9]} 16. Ned4 {[%clk 0:01:26.5]} 16...
bxc4 {[%clk 0:02:02.3]} 17. bxc4 {[%clk 0:01:27.4]} 17... Rab8 {[%clk
0:02:00.7]} 18. Rb1 {[%clk 0:01:21.7]} 18... Nc5 {[%clk 0:02:00.2]} 19. Nc6
{[%clk 0:01:16.3]} 19... Rb3 {[%clk 0:01:56.4]} 20. Qe2 {[%clk 0:00:37.3]} 20...
Na4 {[%clk 0:01:43.3]} 21. Bxf6 {[%clk 0:00:20.1]} 21... Rxb1 {[%clk 0:01:39.8]}
22. Nxe7+ {[%clk 0:00:16.4]} 22... Kh8 {[%clk 0:01:35.3]} 23. Bxg7+ {[%clk
0:00:15.5]} 23... Kxg7 {[%clk 0:01:35.7]} 24. Rxb1 {[%clk 0:00:14.6]} 24... Nc3
{[%clk 0:01:36]} 25. Qb2 {[%clk 0:00:12.9]} 25... Qxe7 {[%clk 0:01:35.7]} 26.
Qxc3+ {[%clk 0:00:12.8]} 26... f6 {[%clk 0:01:36]} 27. Re1 {[%clk 0:00:12.6]}
27... Qd7 {[%clk 0:01:32.6]} 28. Re6 {[%clk 0:00:12.5]} 28... Rf7 {[%clk
0:01:25.2]} 29. Qe3 {[%clk 0:00:12.6]} 29... f5 {[%clk 0:01:24.6]} 30. Ng5
{[%clk 0:00:11.1]} 30... h6 {[%clk 0:01:21.6]} 31. Nxf7 {[%clk 0:00:11.2]} 31...
Kxf7 {[%clk 0:01:22.5]} 32. Qd4 {[%clk 0:00:10.4]} 32... Qd8 {[%clk 0:01:20.8]}
33. c5 {[%clk 0:00:09.3]} 33... dxc5 {[%clk 0:01:20.7]} 34. Qxc5 {[%clk
0:00:10.2]} 34... g5 {[%clk 0:01:19.6]} 35. Qxa7+ {[%clk 0:00:09.9]} 35... Kf8
{[%clk 0:01:18.2]} 36. Qh7 {[%clk 0:00:08.1]} 36... Qxd5+ {[%clk 0:01:18.1]} 37.
Kg1 {[%clk 0:00:06.4]} 37... Qxe6 {[%clk 0:01:17.4]} 38. Qh8+ {[%clk 0:00:06.5]}
38... Kf7 {[%clk 0:01:15.2]} 39. Qh7+ {[%clk 0:00:06.8]} 39... Kf8 {[%clk
0:01:15.5]} 40. Qh8+ {[%clk 0:00:07.2]} 40... Kf7 {[%clk 0:01:15.8]} 41. Qh7+
{[%clk 0:00:07.7]} 41... Kf8 {[%clk 0:01:16.3]} 1/2-1/2

[Event "Late-Titled-Tuesday-Blitz-September-05-2023"]
[Site "Chess.com"]
[Date "2023.09.05"]
[Round "4"]
[White "NelsonLinda"]
[Black "MeisterJabo"]
[Result "1-0"]
[WhiteElo "2483"]
[BlackElo "2309"]
[TimeControl "180+1"]
[EndTime "14:39:01 PDT"]
[Termination "NelsonLinda won by checkmate"]

1. Nf3 {[%clk 0:03:00.9]} 1... Nc6 {[%clk 0:02:58.3]} 2. c4 {[%clk 0:02:57.5]}
2... e5 {[%clk 0:02:56.8]} 3. Nc3 {[%clk 0:02:57.5]} 3... Nf6 {[%clk 0:02:54.3]}
4. e4 {[%clk 0:02:57.5]} 4... Bb4 {[%clk 0:02:50.5]} 5. d3 {[%clk 0:02:55.6]}
5... O-O {[%clk 0:02:49.4]} 6. Bd2 {[%clk 0:02:55.8]} 6... d6 {[%clk 0:02:43.6]}
7. Be2 {[%clk 0:02:55.5]} 7... a5 {[%clk 0:02:42.8]} 8. O-O {[%clk 0:02:55]}
8... h6 {[%clk 0:02:35.3]} 9. h3 {[%clk 0:02:54.9]} 9... Be6 {[%clk 0:02:34.4]}
10. Re1 {[%clk 0:02:48.4]} 10... Nd4 {[%clk 0:02:25.7]} 11. Bf1 {[%clk
0:02:46.5]} 11... c6 {[%clk 0:02:23.7]} 12. Nxd4 {[%clk 0:02:31.3]} 12... exd4
{[%clk 0:02:22.1]} 13. Ne2 {[%clk 0:02:31.8]} 13... Bc5 {[%clk 0:02:14.6]} 14.
Nf4 {[%clk 0:02:28.4]} 14... Bd7 {[%clk 0:02:07.2]} 15. Rb1 {[%clk 0:02:26.5]}
15... Qc7 {[%clk 0:02:02.2]} 16. b3 {[%clk 0:02:21.6]} 16... Rfe8 {[%clk
0:01:45.3]} 17. Qc1 {[%clk 0:02:16.1]} 17... b5 {[%clk 0:01:26.3]} 18. Ne2
{[%clk 0:02:12.2]} 18... b4 {[%clk 0:01:17.6]} 19. Ng3 {[%clk 0:02:11.3]} 19...
a4 {[%clk 0:01:09.2]} 20. Qd1 {[%clk 0:02:07.5]} 20... axb3 {[%clk 0:01:00.7]}
21. axb3 {[%clk 0:02:08.4]} 21... Ra2 {[%clk 0:00:59.9]} 22. Bf4 {[%clk
0:02:08.5]} 22... Rea8 {[%clk 0:00:57.6]} 23. Qf3 {[%clk 0:02:08.5]} 23... Be6
{[%clk 0:00:37.8]} 24. e5 {[%clk 0:01:49.9]} 24... Nd7 {[%clk 0:00:36.7]} 25.
Nh5 {[%clk 0:01:28.6]} 25... Nxe5 {[%clk 0:00:20.5]} 26. Rxe5 {[%clk 0:01:27.8]}
26... dxe5 {[%clk 0:00:21.4]} 27. Qg3 {[%clk 0:01:28.7]} 27... g6 {[%clk
0:00:06.7]} 28. Bxe5 {[%clk 0:01:28.9]} 28... Bd6 {[%clk 0:00:05.1]} 29. Bxd6
{[%clk 0:01:24.9]} 29... Qd8 {[%clk 0:00:03.4]} 30. Be5 {[%clk 0:01:21.5]} 30...
Qg5 {[%clk 0:00:03.5]} 31. Nf6+ {[%clk 0:01:19.4]} 31... Kf8 {[%clk 0:00:01.8]}
32. Nh7+ {[%clk 0:01:19.4]} 32... Ke7 {[%clk 0:00:01.6]} 33. Nxg5 {[%clk
0:01:20.3]} 33... hxg5 {[%clk 0:00:02.3]} 34. Qxg5+ {[%clk 0:01:20.6]} 34... Kd7
{[%clk 0:00:02.8]} 35. Bxd4 {[%clk 0:01:20.2]} 35... Rc2 {[%clk 0:00:02.9]} 36.
Qc5 {[%clk 0:01:16.7]} 36... Raa2 {[%clk 0:00:03.8]} 37. Qxb4 {[%clk 0:01:16.5]}
37... Rd2 {[%clk 0:00:02.8]} 38. Bc5 {[%clk 0:01:16.7]} 38... Bf5 {[%clk
0:00:02.5]} 39. Qb7+ {[%clk 0:01:16.3]} 39... Ke6 {[%clk 0:00:03.4]} 40. Qe7#
{[%clk 0:01:16.1]} 1-0

[Event "Late-Titled-Tuesday-Blitz-September-05-2023"]
[Site "Chess.com"]
[Date "2023.09.05"]
[Round "4"]
[White "onnoelgersma"]
[Black "temus_galaktionov"]
[Result "1/2-1/2"]
[WhiteElo "2579"]
[BlackElo "2812"]
[TimeControl "180+1"]
[EndTime "14:39:05 PDT"]
[Termination "Game drawn - insufficient material"]

1. e4 {[%clk 0:03:00.8]} 1... c6 {[%clk 0:03:00.9]} 2. d4 {[%clk 0:02:53.7]}
2... g6 {[%clk 0:03:01.8]} 3. e5 {[%clk 0:02:54.6]} 3... d6 {[%clk 0:03:02]} 4.
exd6 {[%clk 0:02:54.2]} 4... exd6 {[%clk 0:03:02.2]} 5. Nf3 {[%clk 0:02:54.4]}
5... Bg7 {[%clk 0:03:02.5]} 6. h3 {[%clk 0:02:53.8]} 6... Nf6 {[%clk 0:03:02.9]}
7. Be2 {[%clk 0:02:53.4]} 7... O-O {[%clk 0:03:02.9]} 8. O-O {[%clk 0:02:47.6]}
8... Re8 {[%clk 0:03:03.2]} 9. c3 {[%clk 0:02:47.9]} 9... Bf5 {[%clk 0:03:02.9]}
10. Re1 {[%clk 0:02:40.9]} 10... Nbd7 {[%clk 0:03:02.8]} 11. a4 {[%clk 0:02:40]}
11... Ne4 {[%clk 0:03:01.1]} 12. Be3 {[%clk 0:02:30.6]} 12... Ndf6 {[%clk
0:03:00.6]} 13. Nbd2 {[%clk 0:02:30.4]} 13... Nd5 {[%clk 0:02:57.1]} 14. Nxe4
{[%clk 0:02:15.4]} 14... Nxe3 {[%clk 0:02:56.8]} 15. fxe3 {[%clk 0:02:16.3]}
15... Bxe4 {[%clk 0:02:56.1]} 16. Bd3 {[%clk 0:02:15.8]} 16... Bh6 {[%clk
0:02:55.3]} 17. Bxe4 {[%clk 0:02:10.1]} 17... Rxe4 {[%clk 0:02:56.2]} 18. Qd3
{[%clk 0:02:10.5]} 18... Qe7 {[%clk 0:02:56.2]} 19. Kf2 {[%clk 0:02:10.2]} 19...
Re8 {[%clk 0:02:55.3]} 20. Re2 {[%clk 0:02:10.1]} 20... Rxe3 {[%clk 0:02:52.3]}
21. Rxe3 {[%clk 0:02:10.5]} 21... Qxe3+ {[%clk 0:02:49.5]} 22. Qxe3 {[%clk
0:02:10.6]} 22... Bxe3+ {[%clk 0:02:49]} 23. Kf1 {[%clk 0:02:09.3]} 23... Bf4
{[%clk 0:02:48.8]} 24. Re1 {[%clk 0:01:58.4]} 24... Rxe1+ {[%clk 0:02:48.3]} 25.
Kxe1 {[%clk 0:01:59.3]} 25... Kg7 {[%clk 0:02:46.5]} 26. Ke2 {[%clk 0:01:59.5]}
26... Kf6 {[%clk 0:02:46.6]} 27. Kd3 {[%clk 0:01:54.9]} 27... d5 {[%clk
0:02:46.8]} 28. c4 {[%clk 0:01:51.1]} 28... a5 {[%clk 0:02:41.6]} 29. cxd5
{[%clk 0:01:45.4]} 29... cxd5 {[%clk 0:02:42.5]} 30. b3 {[%clk 0:01:46.3]} 30...
h5 {[%clk 0:02:40.9]} 31. Ng1 {[%clk 0:01:44.5]} 31... Bd6 {[%clk 0:02:30.5]}
32. Ne2 {[%clk 0:01:43.8]} 32... g5 {[%clk 0:02:30.1]} 33. Nc3 {[%clk
0:01:43.8]} 33... Ke6 {[%clk 0:02:29.7]} 34. Nb5 {[%clk 0:01:43]} 34... Bf4
{[%clk 0:02:26.8]} 35. Nc3 {[%clk 0:01:41]} 35... f5 {[%clk 0:02:25.1]} 36. Ne2
{[%clk 0:01:24.6]} 36... Bd6 {[%clk 0:02:23.9]} 37. Ke3 {[%clk 0:01:24.7]} 37...
h4 {[%clk 0:02:20.3]} 38. Kf3 {[%clk 0:01:21.6]} 38... Bb4 {[%clk 0:02:18.8]}
39. Ke3 {[%clk 0:01:19.8]} 39... Kf6 {[%clk 0:02:17.5]} 40. Nc1 {[%clk
0:01:17.7]} 40... Bd6 {[%clk 0:02:16.2]} 41. Nd3 {[%clk 0:01:17.2]} 41... g4
{[%clk 0:02:15.6]} 42. Nc1 {[%clk 0:01:09.4]} 42... f4+ {[%clk 0:02:11.9]} 43.
Kf2 {[%clk 0:01:05.4]} 43... Kf5 {[%clk 0:02:07.1]} 44. hxg4+ {[%clk 0:01:05.6]}
44... Kxg4 {[%clk 0:02:08]} 45. Ne2 {[%clk 0:01:03.9]} 45... Bb4 {[%clk
0:02:07.2]} 46. Ng1 {[%clk 0:01:02.1]} 46... Bc3 {[%clk 0:02:01.2]} 47. Nf3
{[%clk 0:01:01.4]} 47... Bb2 {[%clk 0:01:57.2]} 48. Kf1 {[%clk 0:00:58.3]} 48...
h3 {[%clk 0:01:52.6]} 49. Ne5+ {[%clk 0:00:55.8]} 49... Kg3 {[%clk 0:01:52.7]}
50. gxh3 {[%clk 0:00:56.1]} 50... Bxd4 {[%clk 0:01:48.7]} 51. Nd3 {[%clk
0:00:51]} 51... f3 {[%clk 0:01:46.4]} 52. h4 {[%clk 0:00:51.4]} 52... Be3 {[%clk
0:01:41.6]} 53. h5 {[%clk 0:00:51.4]} 53... Kh4 {[%clk 0:01:34.1]} 54. Ne5
{[%clk 0:00:43.2]} 54... f2 {[%clk 0:01:34]} 55. h6 {[%clk 0:00:43.5]} 55...
Bxh6 {[%clk 0:01:32.8]} 56. Kxf2 {[%clk 0:00:43]} 56... Kg5 {[%clk 0:01:32.9]}
57. Nf7+ {[%clk 0:00:34.5]} 57... Kg6 {[%clk 0:01:33]} 58. Nxh6 {[%clk
0:00:35.1]} 58... Kxh6 {[%clk 0:01:33.9]} 59. Ke3 {[%clk 0:00:36]} 59... Kg5
{[%clk 0:01:32.5]} 60. Kd4 {[%clk 0:00:36.9]} 60... Kf4 {[%clk 0:01:33.4]} 61.
Kxd5 {[%clk 0:00:37.4]} 61... Ke3 {[%clk 0:01:34.3]} 62. Kc5 {[%clk 0:00:37.9]}
62... Kd3 {[%clk 0:01:34.5]} 63. Kb5 {[%clk 0:00:37.5]} 63... Kc3 {[%clk
0:01:35]} 64. Kxa5 {[%clk 0:00:37.8]} 64... Kxb3 {[%clk 0:01:35.5]} 65. Kb6
{[%clk 0:00:38.4]} 65... Kxa4 {[%clk 0:01:36.4]} 66. Kxb7 {[%clk 0:00:38.9]}
1/2-1/2